fUST/lending_fUST_20250809
["ID","MTS","AMOUNT","RATE_DAILY","PERIOD"]
[378057133,1754710233730,-151.0,0.00021951,7]
[378057134,1754710233739,-460.0,0.00021951,2]
[378057135,1754710233749,-460.0,0.00021951,2]
[378057136,1754710233758,-152.923022,0.00021951,7]
[378057137,1754710233767,-460.0,0.00021951,2]
[378057138,1754710233775,-460.0,0.00021951,2]
[378057139,1754710233783,-460.0,0.00021951,2]
[378057140,1754710233790,-288.484862,0.00021951,7]
[378057141,1754710233799,-460.0,0.00021951,2]
[378057142,1754710233807,-294.794306,0.00021951,7]
[378057143,1754710233816,-294.794306,0.00021951,7]
[378057144,1754710233826,-460.0,0.00021951,2]
[378057145,1754710233837,-460.0,0.00021951,2]
[378057146,1754710233846,-460.0,0.00021951,2]
[378057147,1754710233856,-460.0,0.00021951,2]
[378057148,1754710233866,-817.376632,0.00021951,7]
[378057149,1754710233875,-817.376632,0.00021951,7]
[378057150,1754710233886,-460.0,0.00021951,2]
[378057151,1754710233896,-222.03612222,0.00021951,2]
[378057152,1754710233906,-540.753163,0.00021951,7]
[378057153,1754710233915,-540.753163,0.00021951,7]
[378057154,1754710233925,-460.0,0.00021951,2]
[378057155,1754710233935,-460.0,0.00021951,2]
[378057156,1754710233946,-460.0,0.00021951,2]
[378057157,1754710233956,-460.0,0.00021951,2]
[378057158,1754710233967,-460.0,0.00021951,2]
[378057159,1754710233976,-460.0,0.00021951,2]
[378057160,1754710233987,-460.0,0.00021951,2]
[378057161,1754710233996,-460.0,0.00021951,2]
[378057162,1754710234006,-460.0,0.00021951,2]
[378057163,1754710234016,-461.961372,0.00021951,7]
[378057164,1754710234025,-461.961372,0.00021951,7]
[378057165,1754710234035,-2461.19,0.00021951,2]
[378057166,1754710234045,-279.065584,0.00021951,7]
[378057167,1754710234054,-460.0,0.00021951,2]
[378057168,1754710234064,-460.0,0.00021951,2]
[378057169,1754710234074,-460.0,0.00021951,2]
[378057170,1754710234084,-541.45,0.00021951,2]
[378057171,1754710234094,-460.0,0.00021951,2]
[378057172,1754710234104,-460.0,0.00021951,2]
[378057173,1754710234114,-485.55,0.00021951,2]
[378057174,1754710234124,-152.369728,0.00021952,7]
[378057175,1754710234133,-151.0,0.00021952,7]
[378057176,1754710234143,-151.0,0.00021952,7]
[378057177,1754710234153,-151.0,0.00021952,7]
[378057178,1754710234163,-152.697814,0.00021952,7]
[378057179,1754710234173,-151.0,0.00021952,7]
[378057180,1754710234184,-460.0,0.00021953,2]
[378057181,1754710234194,-460.0,0.00021953,2]
[378057182,1754710234204,-460.0,0.00021953,2]
[378057183,1754710234214,-460.0,0.00021953,2]
[378057184,1754710234223,-460.0,0.00021953,2]
[378057185,1754710234233,-153.300032,0.00021953,7]
[378057186,1754710234243,-151.525067,0.00021953,7]
[378057187,1754710234252,-151.0,0.00021953,7]
[378057188,1754710234262,-470.41836574,0.00021953,2]
[378057189,1754710234271,-460.0,0.00021953,2]
[378057190,1754710234281,-467.85964187,0.00021953,2]
[378057191,1754710234291,-464.60910412,0.00021953,2]
[378057192,1754710234301,-151.0,0.00021953,2]
[378057193,1754710234310,-460.0,0.00021953,2]
[378057194,1754710234319,-460.0,0.00021953,2]
[378057195,1754710234329,-154.337082,0.00021953,7]
[378057196,1754710234339,-151.0,0.00021953,2]
[378057197,1754710234348,-151.0,0.00021953,7]
[378057198,1754710234358,-466.98469905,0.00021953,2]
[378057199,1754710234367,-151.0,0.00021953,7]
[378057200,1754710234377,-151.0,0.00021953,7]
[378057201,1754710234387,-151.0,0.00021953,7]
[378057202,1754710234396,-151.0,0.00021953,2]
[378057203,1754710234406,-151.0,0.00021953,2]
[378057204,1754710234415,-198.0,0.00021953,2]
[378057205,1754710234424,-151.0,0.00021953,2]
[378057206,1754710234433,-460.0,0.00021953,2]
[378057207,1754710234443,-460.0,0.00021953,2]
[378057208,1754710234452,-460.0,0.00021953,2]
[378057209,1754710234464,-460.0,0.00021953,2]
[378057210,1754710234474,-177.4,0.00021953,2]
[378057211,1754710234483,-151.0,0.00021953,7]
[378057212,1754710234492,-294.794306,0.00021953,7]
[378057213,1754710234502,-294.794306,0.00021953,7]
[378057214,1754710234511,-460.0,0.00021953,2]
[378057215,1754710234520,-460.0,0.00021953,2]
[378057216,1754710234529,-491.51,0.00021953,2]
[378057217,1754710234539,-460.0,0.00021953,2]
[378057218,1754710234548,-817.376632,0.00021953,7]
[378057219,1754710234557,-817.376632,0.00021953,7]
[378057220,1754710234566,-460.0,0.00021953,2]
[378057221,1754710234575,-151.0,0.00021953,2]
[378057222,1754710234585,-151.0,0.00021953,2]
[378057223,1754710234594,-540.753163,0.00021953,7]
[378057224,1754710234603,-540.753163,0.00021953,7]
[378057225,1754710234612,-540.753163,0.00021953,7]
[378057226,1754710234621,-540.753163,0.00021953,7]
[378057227,1754710234631,-460.0,0.00021953,2]
[378057228,1754710234640,-460.0,0.00021953,2]
[378057229,1754710234649,-225.46759728,0.00021953,2]
[378057230,1754710234658,-460.0,0.00021953,2]
[378057231,1754710234669,-353.15238428,0.00021953,2]
[378057232,1754710234681,-460.0,0.00021953,2]
[378057233,1754710234690,-652.92,0.00021953,2]
[378057234,1754710234699,-460.0,0.00021953,2]
[378057235,1754710234819,-622.76,0.00021953,2]
[378057236,1754710234829,-466.13,0.00021953,2]
[378057237,1754710234840,-461.961372,0.00021953,7]
[378057238,1754710234850,-461.961372,0.00021953,7]
[378057239,1754710234860,-460.0,0.00021953,2]
[378057240,1754710234869,-828.37,0.00021953,2]
[378057241,1754710234878,-481.09882638,0.00021953,2]
[378057242,1754710234888,-12666.14847857,0.00021953,7]
[378057243,1754710234897,-491.50202138,0.00021953,2]
[378057244,1754710234907,-397.29816177,0.00021953,2]
[378057245,1754710234918,-151.637506,0.00021954,7]
[378057246,1754710234927,-152.523212,0.00021954,7]
[378057247,1754710234937,-151.0,0.00021954,7]
[378057248,1754710234947,-151.0,0.00021954,7]
[378057249,1754710234956,-460.0,0.00021954,2]
[378057250,1754710234965,-460.0,0.00021954,2]
[378057251,1754710234976,-460.0,0.00021954,2]
[378057252,1754710234985,-153.635097,0.00021954,7]
[378057253,1754710234994,-475.67763924,0.00021954,2]
[378057254,1754710235004,-520.3150014,0.00021954,2]
[378057255,1754710235013,-460.0,0.00021954,2]
[378057256,1754710235023,-460.0,0.00021954,2]
[378057257,1754710235033,-151.0,0.00021954,7]
[378057258,1754710235042,-152.170923,0.00021954,7]
[378057259,1754710235052,-219.714483,0.00021954,7]
[378057260,1754710235061,-151.0,0.00021954,7]
[378057261,1754710235071,-151.0,0.00021954,7]
[378057262,1754710235081,-184.931468,0.00021954,7]
[378057263,1754710235091,-460.0,0.00021954,2]
[378057264,1754710235100,-460.0,0.00021954,2]
[378057265,1754710235110,-460.0,0.00021954,2]
[378057266,1754710235119,-460.0,0.00021954,2]
[378057267,1754710235128,-460.0,0.00021954,2]
[378057268,1754710235137,-151.0,0.00021954,7]
[378057269,1754710235146,-241.515572,0.00021954,7]
[378057270,1754710235155,-294.794306,0.00021954,7]
[378057271,1754710235165,-294.794306,0.00021954,7]
[378057272,1754710235174,-294.794306,0.00021954,7]
[378057273,1754710235184,-294.794306,0.00021954,7]
[378057274,1754710235194,-817.376632,0.00021954,7]
[378057275,1754710235203,-817.376632,0.00021954,7]
[378057276,1754710235214,-817.376632,0.00021954,7]
[378057277,1754710235225,-817.376632,0.00021954,7]
[378057278,1754710235235,-540.753163,0.00021954,7]
[378057279,1754710235245,-540.753163,0.00021954,7]
[378057280,1754710235254,-464.05828829,0.00021954,2]
[378057281,1754710235263,-460.0,0.00021954,2]
[378057282,1754710235272,-468.34271886,0.00021954,2]
[378057283,1754710235282,-460.0,0.00021954,2]
[378057284,1754710235291,-461.961372,0.00021954,7]
[378057285,1754710235300,-461.961372,0.00021954,7]
[378057286,1754710235309,-461.961372,0.00021954,7]
[378057287,1754710235318,-461.961372,0.00021954,7]
[378057288,1754710235327,-471.61548007,0.00021954,2]
[378057289,1754710235336,-460.0,0.00021955,2]
[378057290,1754710235345,-151.0,0.00021955,7]
[378057291,1754710235355,-208.800812,0.00021955,7]
[378057292,1754710235364,-499.69,0.00021955,2]
[378057293,1754710235373,-540.753163,0.00021955,7]
[378057294,1754710235382,-540.753163,0.00021955,7]
[378057295,1754710235391,-151.0,0.00021956,7]
[378057296,1754710235401,-151.0,0.00021956,7]
[378057297,1754710235410,-294.794306,0.00021956,7]
[378057298,1754710235419,-294.794306,0.00021956,7]
[378057299,1754710235428,-817.376632,0.00021956,7]
[378057300,1754710235437,-423.56610509,0.00021956,7]
[378057301,1754710235452,-393.81052691,0.00021956,7]
[378057302,1754710235461,-461.961372,0.00021956,7]
[378057303,1754710235470,-461.961372,0.00021956,7]
[378057304,1754710235479,-460.0,0.00021957,2]
[378057305,1754710235488,-460.0,0.00021957,2]
[378057306,1754710235498,-460.0,0.00021957,2]
[378057307,1754710235508,-469.82268104,0.00021957,2]
[378057308,1754710235517,-460.0,0.00021957,2]
[378057309,1754710235526,-341.36,0.00021963,3]
[378057310,1754710235536,-2347.87260389,0.00021964,2]
[378057311,1754710235544,-500.0,0.00021973,2]
[378057312,1754710235554,-151.0,0.00021973,7]
[378057313,1754710235568,-5007.2634349,0.00021973,2]
[378057314,1754710235578,-294.794306,0.00021996,7]
[378057315,1754710235587,-294.794306,0.00021996,7]
[378057316,1754710235596,-817.376632,0.00021996,7]
[378057317,1754710235605,-817.376632,0.00021996,7]
[378057318,1754710235614,-540.753163,0.00021996,7]
[378057319,1754710235623,-540.753163,0.00021996,7]
[378057320,1754710235632,-461.961372,0.00021996,7]
[378057321,1754710235641,-461.961372,0.00021996,7]
[378057322,1754710235650,-2434.74389024,0.00022019,2]
[378057323,1754710235659,-151.0,0.00022022,7]
[378057324,1754710235668,-3374.16081902,0.00022032,2]
[378057325,1754710235678,-151.0,0.00022032,7]
[378057326,1754710235686,-151.0,0.00022032,7]
[378057327,1754710235696,-151.0,0.00022032,7]
[378057328,1754710235704,-294.794306,0.00022032,7]
[378057329,1754710235714,-294.794306,0.00022032,7]
[378057330,1754710235723,-294.794306,0.00022032,7]
[378057331,1754710235732,-294.794306,0.00022032,7]
[378057332,1754710235742,-817.376632,0.00022032,7]
[378057333,1754710235751,-817.376632,0.00022032,7]
[378057334,1754710235760,-540.753163,0.00022032,7]
[378057335,1754710235769,-540.753163,0.00022032,7]
[378057336,1754710235778,-461.961372,0.00022032,7]
[378057337,1754710235786,-461.961372,0.00022032,7]
[378057338,1754710235795,-152920.7714982,0.00022032,2]
[378057339,1754710235811,-992.65844202,0.00022032,2]
[378057340,1754710235825,-2744.45131952,0.00022032,2]
[378057341,1754710236062,204.13375626,0.000199,2]
[378057563,1754710242128,158.30743282,0.00021202,2]
[378057568,1754710242986,-151.0,0.00021855,2]
[378057569,1754710242996,-151.0,0.00021855,2]
[378057570,1754710243006,-151.0,0.00021855,2]
[378057571,1754710243015,-151.0,0.00021855,2]
[378057572,1754710243025,-151.0,0.00021855,2]
[378057573,1754710243035,-151.0,0.00021855,2]
[378057574,1754710243044,-250.0,0.00021855,2]
[378057575,1754710243054,-151.0,0.00021855,2]
[378057576,1754710243064,-250.0,0.00021855,2]
[378057577,1754710243073,-250.0,0.00021855,2]
[378057578,1754710243083,-151.0,0.00021855,2]
[378057579,1754710243092,-151.0,0.00021855,2]
[378057580,1754710243101,-151.0,0.00021855,2]
[378057581,1754710243111,-151.0,0.00021855,2]
[378057582,1754710243120,-250.0,0.00021855,2]
[378057583,1754710243129,-151.0,0.00021855,2]
[378057584,1754710243138,-31.8,0.00021855,2]
[378057611,1754710269176,160.04996332,0.00021,3]
[378057612,1754710305069,151.676585,0.00027765,30]
[378057613,1754710311734,160.0,0.00021,2]
[378057614,1754710320840,412.5856576,0.00021013,2]
[378057615,1754710322911,1648.69228776,0.00021013,2]
[378057617,1754710411749,206.19779645,0.000199,2]
[378057619,1754710584602,206.19779641,0.000199,2]
[378057620,1754710648763,381.76201425,0.00021013,2]
[378057621,1754710650911,1527.04805701,0.00021013,2]
[378057622,1754710653484,3435.85812828,0.00021013,2]
[378057623,1754710656187,6102.08403583,0.00021013,2]
[378057624,1754710687287,864.35109387,0.00021013,2]
[378057625,1754710687309,71.37737645,0.00021013,2]
[378057626,1754710689579,3739.17096739,0.00021013,2]
[378057627,1754710755370,206.19779641,0.000199,2]
[378057632,1754710901801,151.676585,0.00027765,30]
[378057633,1754710930471,206.19779641,0.000199,2]
[378057635,1754711110804,206.19779641,0.000199,2]
[378057638,1754711191673,169.013858,0.00013699,2]
[378057639,1754711191869,169.013858,0.00020187,2]
[378057642,1754711290231,203.20885981,0.000199,2]
[378057715,1754711432303,-799.06941018,0.00021817,2]
[378057717,1754711432313,-799.06941018,0.00021871,2]
[378057718,1754711432323,-889.19,0.0002189,10]
[378057720,1754711432332,-647.31,0.0002189,10]
[378057721,1754711432343,-300.0,0.00021899,2]
[378057723,1754711432352,-300.0,0.00021899,2]
[378057724,1754711432361,-1200.0,0.00021899,2]
[378057726,1754711432371,-5148.82019862,0.000219,2]
[378057728,1754711432383,-592.378989,0.000219,2]
[378057730,1754711432394,-2514.286,0.000219,2]
[378057753,1754711438181,-1342.58580259,0.00021899,2]
[378057754,1754711438191,-1342.58580259,0.00021899,2]
[378057755,1754711438200,-1342.58580259,0.00021899,2]
[378057756,1754711438210,-1342.58580259,0.00021899,2]
[378057757,1754711438219,-1342.58580259,0.00021899,2]
[378057758,1754711438229,-1342.58580259,0.00021899,2]
[378057759,1754711438238,-1342.58580259,0.00021899,2]
[378057760,1754711438248,-1342.58580259,0.00021899,2]
[378057761,1754711438257,-1342.58580259,0.00021899,2]
[378057762,1754711438268,-1342.58580259,0.00021899,2]
[378057763,1754711438277,-1342.58580259,0.00021899,2]
[378057764,1754711438287,-1342.58580259,0.00021899,2]
[378057765,1754711438297,-1342.58580259,0.00021899,2]
[378057766,1754711438307,-1342.58580259,0.00021899,2]
[378057767,1754711438316,-1342.58580259,0.00021899,2]
[378057768,1754711438325,-1342.58580259,0.00021899,2]
[378057769,1754711438335,-1342.58580259,0.00021899,2]
[378057770,1754711438344,-1342.58580259,0.00021899,2]
[378057771,1754711438354,-1342.58580259,0.00021899,2]
[378057772,1754711438363,-1342.58580259,0.00021899,2]
[378057773,1754711438372,-500.0,0.00021899,2]
[378057774,1754711438382,-500.0,0.00021899,2]
[378057775,1754711438391,-608.11254031,0.00021899,2]
[378057776,1754711438404,-500.0,0.00021899,2]
[378057777,1754711438414,-500.0,0.00021899,2]
[378057778,1754711438424,-500.0,0.00021899,2]
[378057779,1754711438434,-500.0,0.00021899,2]
[378057780,1754711438444,-500.0,0.00021899,2]
[378057781,1754711438615,-500.0,0.00021899,2]
[378057782,1754711438625,-500.0,0.00021899,2]
[378057783,1754711438635,-500.0,0.00021899,2]
[378057784,1754711438644,-500.0,0.00021899,2]
[378057785,1754711438653,-500.0,0.00021899,2]
[378057786,1754711438663,-580.08583432,0.00021899,2]
[378057787,1754711438672,-208.58952138,0.00021899,2]
[378057788,1754711438682,-500.0,0.00021899,2]
[378057789,1754711438698,-500.0,0.00021899,2]
[378057790,1754711438709,-500.0,0.00021899,2]
[378057791,1754711438719,-500.0,0.00021899,2]
[378057792,1754711438728,-500.0,0.00021899,2]
[378057793,1754711438738,-163.87668338,0.00021899,2]
[378057794,1754711438747,-500.0,0.00021899,2]
[378057795,1754711438757,-500.0,0.00021899,2]
[378057796,1754711438768,-500.0,0.00021899,2]
[378057797,1754711438779,-500.0,0.00021899,2]
[378057798,1754711438790,-500.0,0.00021899,2]
[378057799,1754711438802,-500.0,0.00021899,2]
[378057800,1754711438813,-500.0,0.00021899,2]
[378057801,1754711438823,-500.0,0.00021899,2]
[378057802,1754711438834,-500.0,0.00021899,2]
[378057803,1754711438843,-500.0,0.00021899,2]
[378057804,1754711438854,-500.0,0.00021899,2]
[378057805,1754711438864,-500.0,0.00021899,2]
[378057806,1754711438873,-311.27056532,0.00021899,2]
[378057807,1754711438883,-500.0,0.00021899,2]
[378057808,1754711438893,-1342.58580259,0.00021899,2]
[378057809,1754711438903,-407.93545915,0.00021899,2]
[378057810,1754711438913,-378.65649261,0.00021899,2]
[378057811,1754711438922,-500.0,0.00021899,2]
[378057812,1754711438932,-500.0,0.00021899,2]
[378057813,1754711438943,-500.0,0.00021899,2]
[378057814,1754711438952,-500.0,0.00021899,2]
[378057815,1754711438962,-500.0,0.00021899,2]
[378057816,1754711438972,-500.0,0.00021899,2]
[378057817,1754711438981,-1342.58580259,0.00021899,2]
[378057818,1754711438991,-500.0,0.00021899,2]
[378057819,1754711439000,-500.0,0.00021899,2]
[378057820,1754711439010,-500.0,0.00021899,2]
[378057821,1754711439020,-500.0,0.00021899,2]
[378057822,1754711439030,-500.0,0.00021899,2]
[378057823,1754711439040,-500.0,0.00021899,2]
[378057824,1754711439050,-500.0,0.00021899,2]
[378057825,1754711439061,-380182.01481238,0.000219,2]
[378057826,1754711439070,-2183.31810187,0.00021904,2]
[378057827,1754711439080,-151.0,0.00021917,2]
[378057828,1754711439091,-151.0,0.00021917,2]
[378057829,1754711439105,-151.0,0.00021917,2]
[378057830,1754711439115,-151.0,0.00021917,2]
[378057831,1754711439127,-500.0,0.00021917,2]
[378057832,1754711439137,-151.0,0.00021917,2]
[378057833,1754711439150,-500.0,0.00021917,2]
[378057834,1754711439159,-151.0,0.00021917,2]
[378057835,1754711439169,-500.0,0.00021917,2]
[378057836,1754711439179,-151.0,0.00021917,2]
[378057837,1754711439189,-500.0,0.00021917,2]
[378057838,1754711439198,-151.0,0.00021917,2]
[378057839,1754711439208,-500.0,0.00021917,2]
[378057840,1754711439219,-500.0,0.00021917,2]
[378057841,1754711439228,-151.0,0.00021917,2]
[378057842,1754711439238,-500.0,0.00021917,2]
[378057843,1754711439247,-151.0,0.00021917,2]
[378057844,1754711439256,-500.0,0.00021917,2]
[378057845,1754711439265,-151.0,0.00021917,2]
[378057846,1754711439276,-500.0,0.00021917,2]
[378057847,1754711439285,-151.0,0.00021917,2]
[378057848,1754711439295,-500.0,0.00021917,2]
[378057849,1754711439305,-151.0,0.00021917,2]
[378057850,1754711439314,-500.0,0.00021917,2]
[378057851,1754711439323,-151.0,0.00021917,2]
[378057852,1754711439333,-500.0,0.00021917,2]
[378057853,1754711439342,-500.0,0.00021917,2]
[378057854,1754711439352,-250.0,0.00021917,2]
[378057855,1754711439362,-151.0,0.00021917,2]
[378057856,1754711439371,-250.0,0.00021917,2]
[378057857,1754711439380,-151.0,0.00021917,2]
[378057858,1754711439390,-250.0,0.00021917,2]
[378057859,1754711439400,-151.0,0.00021917,2]
[378057860,1754711439410,-151.0,0.00021917,2]
[378057861,1754711439419,-250.0,0.00021917,2]
[378057862,1754711439429,-151.0,0.00021917,2]
[378057863,1754711439440,-250.0,0.00021917,2]
[378057864,1754711439449,-151.0,0.00021917,2]
[378057865,1754711439460,-233.58820104,0.00021917,2]
[378057866,1754711439470,-151.0,0.00021917,2]
[378057867,1754711439480,-151.0,0.00021917,2]
[378057868,1754711439491,-151.0,0.00021917,2]
[378057869,1754711439501,-216.01363067,0.00021917,2]
[378057870,1754711439511,-460.0,0.00021917,2]
[378057871,1754711439520,-460.0,0.00021917,2]
[378057872,1754711439532,-462.14163462,0.00021917,2]
[378057873,1754711439541,-186.7298308,0.00021917,2]
[378057874,1754711439551,-460.0,0.00021917,2]
[378057875,1754711439560,-461.37987211,0.00021917,2]
[378057876,1754711439570,-466.89859832,0.00021917,2]
[378057877,1754711439580,-460.0,0.00021917,2]
[378057878,1754711439589,-464.56558262,0.00021917,2]
[378057879,1754711439599,-461.40195142,0.00021917,2]
[378057880,1754711439609,-460.0,0.00021917,2]
[378057881,1754711439620,-460.0,0.00021917,2]
[378057882,1754711439631,-477.17215967,0.00021917,2]
[378057883,1754711439641,-462.81789658,0.00021917,2]
[378057884,1754711439652,-460.0,0.00021917,2]
[378057885,1754711439671,-462.80035141,0.00021917,2]
[378057886,1754711439681,-460.0,0.00021917,2]
[378057887,1754711439690,-461.29878547,0.00021917,2]
[378057888,1754711439700,-376.31803123,0.00021917,2]
[378057889,1754711439710,-460.0,0.00021917,2]
[378057890,1754711439720,-460.0,0.00021917,2]
[378057891,1754711439729,-460.0,0.00021917,2]
[378057892,1754711439739,-460.0,0.00021917,2]
[378057893,1754711439748,-460.0,0.00021917,2]
[378057894,1754711439758,-461.03539235,0.00021917,2]
[378057895,1754711439768,-460.0,0.00021917,2]
[378057896,1754711439778,-460.0,0.00021917,2]
[378057897,1754711439788,-460.0,0.00021917,2]
[378057898,1754711439798,-463.06382047,0.00021917,2]
[378057899,1754711439808,-463.65130656,0.00021917,2]
[378057902,1754711439818,-460.0,0.00021917,2]
[378057905,1754711439828,-472.34683156,0.00021917,2]
[378057906,1754711439838,-625.71,0.00021917,2]
[378057907,1754711439847,-460.0,0.00021917,2]
[378057908,1754711439857,-465.26151187,0.00021917,2]
[378057909,1754711439866,-482.4426983,0.00021917,2]
[378057910,1754711439876,-224.37148239,0.00021917,2]
[378057911,1754711439885,-460.0,0.00021917,2]
[378057912,1754711439895,-462.37065281,0.00021917,2]
[378057913,1754711439904,-461.32002932,0.00021917,2]
[378057914,1754711439914,-461.98231756,0.00021917,2]
[378057915,1754711439923,-207.56070991,0.00021917,2]
[378057916,1754711439933,-460.0,0.00021917,2]
[378057917,1754711439942,-460.0,0.00021917,2]
[378057918,1754711439952,-468.42027887,0.00021917,2]
[378057919,1754711439961,-460.0,0.00021917,2]
[378057920,1754711439971,-466.58529697,0.00021917,2]
[378057921,1754711439980,-460.0,0.00021917,2]
[378057922,1754711439990,-460.0,0.00021917,2]
[378057923,1754711439999,-460.0,0.00021917,2]
[378057924,1754711440010,-460.0,0.00021917,2]
[378057926,1754711440019,-460.0,0.00021917,2]
[378057928,1754711440029,-464.71272201,0.00021917,2]
[378057930,1754711440039,-460.0,0.00021917,2]
[378057932,1754711440048,-466.46568451,0.00021917,2]
[378057934,1754711440057,-460.0,0.00021917,2]
[378057936,1754711440067,-460.0,0.00021917,2]
[378057938,1754711440076,-472.42257431,0.00021917,2]
[378057940,1754711440086,-460.0,0.00021917,2]
[378057942,1754711440097,-460.0,0.00021917,2]
[378057944,1754711440108,-463.8166586,0.00021917,2]
[378057946,1754711440118,-460.0,0.00021917,2]
[378057948,1754711440127,-460.0,0.00021917,2]
[378057950,1754711440136,-468.67217256,0.00021917,2]
[378057952,1754711440146,-460.0,0.00021917,2]
[378057954,1754711440155,-602.28398819,0.00021917,2]
[378057956,1754711440164,-460.0,0.00021917,2]
[378057958,1754711440174,-460.0,0.00021917,2]
[378057960,1754711440183,-464.75964567,0.00021917,2]
[378057962,1754711440193,-460.0,0.00021917,2]
[378057964,1754711440202,-465.45423134,0.00021917,2]
[378057966,1754711440213,-465.42631884,0.00021917,2]
[378057968,1754711440223,-464.5103352,0.00021917,2]
[378057970,1754711440233,-460.0,0.00021917,2]
[378057972,1754711440242,-460.0,0.00021917,2]
[378057974,1754711440252,-464.8061936,0.00021917,2]
[378057976,1754711440261,-470.39167517,0.00021917,2]
[378057978,1754711440270,-465.31,0.00021917,2]
[378057980,1754711440280,-463.10984365,0.00021917,2]
[378057982,1754711440289,-688.52,0.00021917,2]
[378057984,1754711440299,-460.0,0.00021917,2]
[378057986,1754711440309,-460.0,0.00021917,2]
[378057988,1754711440318,-460.0,0.00021917,2]
[378057990,1754711440327,-468.4234229,0.00021917,2]
[378057992,1754711440336,-460.0,0.00021917,2]
[378057994,1754711440345,-460.0,0.00021917,2]
[378057996,1754711440355,-460.0,0.00021917,2]
[378057998,1754711440365,-490.2,0.00021917,2]
[378058000,1754711440374,-460.0,0.00021917,2]
[378058002,1754711440383,-460.0,0.00021917,2]
[378058004,1754711440393,-1208.9,0.00021917,2]
[378058006,1754711440402,-460.0,0.00021917,2]
[378058008,1754711440411,-460.0,0.00021917,2]
[378058010,1754711440421,-477.25206601,0.00021917,2]
[378058012,1754711440430,-460.0,0.00021917,2]
[378058014,1754711440439,-460.0,0.00021917,2]
[378058016,1754711440449,-460.0,0.00021917,2]
[378058018,1754711440459,-460.0,0.00021917,2]
[378058020,1754711440468,-475.83185336,0.00021917,2]
[378058022,1754711440478,-618.53,0.00021917,2]
[378058024,1754711440487,-472.20517016,0.00021917,2]
[378058026,1754711440497,-460.0,0.00021917,2]
[378058028,1754711440506,-460.0,0.00021917,2]
[378058030,1754711440516,-465.87,0.00021917,2]
[378058032,1754711440525,-460.0,0.00021917,2]
[378058034,1754711440533,-460.0,0.00021917,2]
[378058036,1754711440543,-460.0,0.00021917,2]
[378058038,1754711440553,-460.0,0.00021917,2]
[378058040,1754711440562,-460.0,0.00021917,2]
[378058042,1754711440571,-460.0,0.00021917,2]
[378058044,1754711440580,-316.29203178,0.00021917,2]
[378058046,1754711440590,-460.0,0.00021917,2]
[378058048,1754711440599,-463.85093154,0.00021917,2]
[378058050,1754711440614,-476.10203087,0.00021917,2]
[378058052,1754711440625,-460.0,0.00021917,2]
[378058054,1754711440635,-460.0,0.00021917,2]
[378058056,1754711440644,-466.8947757,0.00021917,2]
[378058058,1754711440654,-463.28628916,0.00021917,2]
[378058060,1754711440663,-461.27611889,0.00021917,2]
[378058062,1754711440672,-460.0,0.00021917,2]
[378058064,1754711440681,-460.0,0.00021917,2]
[378058066,1754711440691,-835.52,0.00021917,2]
[378058068,1754711440701,-226.36770675,0.00021917,2]
[378058070,1754711440710,-460.0,0.00021917,2]
[378058072,1754711440719,-460.0,0.00021917,2]